Cogmind - Beta 15 @@@ ROGUE MODE // 2025.10.12 @ 18:02:04 Player: unq Result: Destroyed by as-25309 with Assembled Blade Performance ------------- Evolutions (0) 0 Regions Visited (2) 400 Robots Destroyed (27) 135 Value Destroyed (423) 423 Prototype IDs (2) 40 Alien Tech Used (0) 0 Bonus (0) 0 TOTAL SCORE: 998 Bonus ------- None Cogmind --------- Core Integrity 0/250 Matter 184/300 Energy 100/100 System Corruption 0% Temperature Cool (0) Movement Treading (160) Location -10/Mines Parts ------- > --- POWER (1) -------- (None) > --- PROPULSION (2) --- Light Treads Light Treads > --- UTILITY (2) ------ Large Storage Unit Seismic Detector > --- WEAPON (2) ------- Assault Rifle Grenade Launcher > --- INVENTORY (15) --- Light Ion Engine Light Ion Engine Light Treads Light Treads High-capacity Matter Pod (93) Seismic Detector ECM Suite Tractor Beam EM Pulse Gun Beam Cannon Assault Rifle Assault Rifle Assault Rifle Datajack Mining Laser Peak State ------------ > --- POWER ------------ Light Ion Engine > --- PROPULSION ------- Light Treads Light Treads > --- UTILITY ---------- Large Storage Unit Seismic Detector > --- WEAPON ----------- Assault Rifle Assault Rifle > --- INVENTORY -------- Light Treads Light Treads High-capacity Matter Pod Seismic Detector EM Pulse Gun Beam Cannon Assault Rifle Assault Rifle Grenade Launcher Mining Laser [Rating: 8] Favorites ----------- Power Light Ion Engine Engine Light Ion Engine Propulsion Light Treads Treads Light Treads Utility Seismic Detector Device Seismic Detector Storage Small Storage Unit Weapon Assault Rifle Energy Gun EM Pulse Gun Ballistic Gun Assault Rifle Launcher Grenade Launcher Special Weapon Mining Laser Build | -11 -10 -10 ------- Run | Yrd Mat Min Slots Evolved . | . . . Power . | . . . Propulsion . | . . . Utility . | . . . Weapon . | . . . Parts Attached 22 | 8 10 4 Power 4 | 1 2 1 Engine 4 | 1 2 1 Core . | . . . Reactor . | . . . Propulsion 4 | 2 1 1 Treads 4 | 2 1 1 Leg . | . . . Wheel . | . . . Hover . | . . . Flight . | . . . Utility 5 | 2 3 . Device 2 | 1 1 . Storage 3 | 1 2 . Processor . | . . . Hackware . | . . . Protection . | . . . Artifact . | . . . Weapon 9 | 3 4 2 Energy Gun 3 | 3 . . Energy Cannon . | . . . Ballistic Gun 4 | . 3 1 Ballistic Cannon . | . . . Launcher 1 | . . 1 Special Weapon 1 | . 1 . Impact Weapon . | . . . Slashing Weapon . | . . . Piercing Weapon . | . . . Special Melee Weapon . | . . . Unidentified Prototypes . | . . . Parts Lost 2 | . . 2 Power 1 | . . 1 Propulsion . | . . . Utility . | . . . Weapon 1 | . . 1 Highest Loss Streak 1 | . . 1 To Critical Strikes . | . . . Average Backups 9 | 1 9 14 Power . | . . 1 Propulsion 1 | . 1 2 Utility 1 | . 1 4 Weapon 5 | 1 5 6 Tool/Special . | . . . Unused Backups 8 | . 1 7 Power 1 | . . 1 Propulsion . | . . . Utility 3 | . 1 2 Weapon 3 | . . 3 Tool/Special 1 | . . 1 Average Slot Usage (%) 100 | . 100 100 Engine 14 | . 14 14 Treads 28 | . 28 28 Device 11 | . 10 14 Storage 16 | . 17 14 Energy Gun 1 | . 2 . Ballistic Gun 25 | . 25 28 Peak Build Rating 8 | 7 8 8 Average Rating 7 | 5 7 7 On Entrance 5 | . 7 8 Naked Turns . | . . . Heaviest Build 29 | 14 28 29 Greatest Support 40 | 40 40 40 Greatest Overweight (x) . | . . . Average Overweight (x) . | . . . Largest Inventory Capacity 15 | 8 15 15 Average Capacity 10 | 7 10 15 Most Carried 15 | 3 15 15 Average Carried 9 | 1 9 14 Final Capacity 15 | 8 15 15 Final Carried 15 | 3 15 15 Class Distribution -------------------- 100% | Mutant Dominant Class ---------------- Mutant | -10/Materials Mutant | -10/Mines Resources | -11 -10 -10 ----------- Run | Yrd Mat Min Matter Collected 788 | 280 460 48 Remotely . | . . . Salvage Created 733 | 217 460 56 Parts 60 | 19 34 7 Haulers Intercepted 1 | . 1 . Recyclers Shooed 1 | 1 . . Parts Field Recycled . | . . . Retrieved Matter . | . . . Parts Self-Destructed . | . . . Prevented . | . . . Kills | -11 -10 -10 ------- Run | Yrd Mat Min Combat Hostiles Destroyed 18 | . 13 5 Guns 16 | . 13 3 AOE 2 | . . 2 Classes Destroyed 9 | 3 5 1 Worker 1 | 1 . . Builder 1 | . 1 . Tunneler 6 | 6 . . Hauler 1 | . 1 . Recycler 1 | 1 . . Watcher 1 | . 1 . Swarmer 9 | . 6 3 Grunt 7 | . 7 . Assembled 2 | . . 2 Best Kill Streak 5 | 5 4 2 Combat Bots Only 3 | . 3 2 Max Kills in Single Turn 2 | 1 2 2 Gunslinging 1 | . 1 . Exploded 2 | . . 2 Melee . | . . . Uniques/NPCs Destroyed . | . . . Combat | -11 -10 -10 -------- Run | Yrd Mat Min Hostile Shots Fired 116 | . 77 39 Missed 22 | . 15 7 Hits 94 | . 62 32 Melee 4 | . . 4 Projectile 90 | . 62 28 Damage Taken 1063 | . 670 393 Core 258 | . 142 116 Absorbed by Shields . | . . . Core Remaining (%) 100 | 100 . . Volleys Fired 94 | 31 48 15 Largest 2 | 1 2 2 Hottest 100 | 40 100 50 Shots Fired 153 | 31 92 30 Gun 147 | 31 88 28 Cannon . | . . . Launcher 2 | . . 2 Special 4 | . 4 . Kinetic 107 | . 79 28 Thermal 35 | 31 4 . Explosive 2 | . . 2 Electromagnetic 9 | . 9 . Robot Hit Streak 8 | 8 8 2 Robot Miss Streak 5 | 4 3 5 Penetration Max . | . . . Secondary Targets 6 | . 6 . Max Gunslinging Chain 1 | . 1 . Shots Hit Robots 81 | 21 49 11 Core Hits 48 | 9 24 15 Critical Kills 1 | . 1 . Critical Parts Destroyed . | . . . Critical Strikes 1 | . 1 . Destroy 1 | . 1 . Melee Attacks . | . . . Impact . | . . . Slashing . | . . . Piercing . | . . . Sneak Attacks . | . . . Combat Hostiles . | . . . Follow-up Attacks . | . . . Damage Inflicted 1240 | 258 669 313 Guns 1040 | 258 669 113 Cannons . | . . . Explosions 200 | . . 200 Melee . | . . . Ramming . | . . . Kinetic 709 | . 596 113 Thermal 258 | 258 . . Explosive 200 | . . 200 Electromagnetic 73 | . 73 . Impact . | . . . Slashing . | . . . Piercing . | . . . Highest Corruption . | . . . Average Corruption . | . . . Corruption Purged . | . . . Corruption Blocked . | . . . Overload Shots . | . . . Overflow Damage . | . . . Projectiles . | . . . Explosions . | . . . Melee . | . . . Knockbacks . | . . . Impact . | . . . Kinetic . | . . . Secondary . | . . . Self-Inflicted Damage 38 | . . 38 Shots 1 | . . 1 Rammed . | . . . Targets Rammed . | . . . Kicked . | . . . Crushed . | . . . Highest Temperature 60 | . 60 13 Average Temperature 20 | . 21 8 Received Heat Transfer 363 | . 303 60 Siege Activations . | . . . Martial Activations . | . . . Shielding Activations . | . . . Robots Disrupted . | . . . Combat Hostiles . | . . . Robots Corrupted . | . . . Combat Hostiles . | . . . Parts Fried . | . . . Impact Corruptions . | . . . Robots Melted . | . . . Combat Hostiles . | . . . Parts Melted . | . . . Heat Transferred 575 | 575 . . Parts Sabotaged . | . . . Parts Stolen . | . . . Parts Stripped . | . . . Power Chain Reactions . | . . . Alert | -11 -10 -10 ------- Run | Yrd Mat Min Maximum Alert Level . | . . . Low Security (%) 100 | 100 100 100 Level 1 . | . . . Level 2 . | . . . Level 3 . | . . . Level 4 . | . . . Level 5 . | . . . High Security . | . . . Max Security . | . . . Peak Influence 116 | 15 116 85 Initial . | . . . Average 30 | 1 36 31 Influence Increases 531 | 40 360 131 Destroy 0b10 Robot/C 320 | . 260 60 Destroy 0b10 Robot/NC 55 | 40 15 . Destroy Leader 74 | . 64 10 Successful Hack 19 | . 19 . Disable Machine 15 | . . 15 Destroy Structure 18 | . 2 16 Lose Combat Pursuer 30 | . . 30 Influence Decreases 500 | 40 360 100 Time Decay 480 | 40 360 80 Lost Part 20 | . . 20 Squads Dispatched 3 | . 3 . Investigation . | . . . Extermination . | . . . Reinforcement 3 | . 3 . Assault . | . . . Garrison . | . . . Intercept . | . . . Searches Triggered . | . . . Construction Impeded . | . . . Haulers Reinforced . | . . . Active Scanning Responses . | . . . Cargo Convoy Interrupts . | . . . Stealth | -11 -10 -10 --------- Run | Yrd Mat Min Distress Signals 1 | . . 1 Communications Jammed . | . . . Distress Signals . | . . . Times Spotted 36 | . 20 16 Peak Tracking Total 14 | . 4 14 Tactical Retreats 2 | . . 2 Traps | -11 -10 -10 ------- Run | Yrd Mat Min Traps Triggered . | . . . Indirectly . | . . . Trap Hack Attempts . | . . . Triggered . | . . . Disarmed . | . . . Reprogrammed . | . . . Reused . | . . . Traps Extracted . | . . . Installed . | . . . Triggered . | . . . Machines | -11 -10 -10 ---------- Run | Yrd Mat Min Machines Disabled 1 | . . 1 Max in Single Turn 1 | . . 1 Machines Repaired . | . . . Machines Dismantled . | . . . Machines Sabotaged . | . . . Overloaded Fab Kills . | . . . Hacking | -11 -10 -10 --------- Run | Yrd Mat Min Machines Accessed 5 | . 5 . Terminals 5 | . 5 . Fabricators . | . . . Repair Stations . | . . . Recycling Units . | . . . Scanalyzers . | . . . Garrison Access . | . . . Total Hacks 13 | . 13 . Successful 6 | . 6 . Failed 7 | . 7 . Catastrophic 1 | . 1 . Database Lockouts . | . . . Manual 8 | . 8 . Terminals 13 | . 13 . Fabricators . | . . . Repair Stations . | . . . Recycling Units . | . . . Scanalyzers . | . . . Garrison Access . | . . . Terminal Hacks 4 | . 4 . Robot Analysis 1 | . 1 . Prototype ID Bank 1 | . 1 . Locate Traps 2 | . 2 . Fabricator Hacks . | . . . Repair Station Hacks . | . . . Recycling Unit Hacks . | . . . Scanalyzer . | . . . Garrison Access Hacks . | . . . Unauthorized Hacks 2 | . 2 . Terminals 2 | . 2 . Botnet 2 | . 2 . Fabricators . | . . . Repair Stations . | . . . Recycling Units . | . . . Scanalyzers . | . . . Garrison Access . | . . . Data Cores Recovered . | . . . Used . | . . . Hacking Detections 5 | . 5 . Full Trace Events 2 | . 2 . Feedback Events . | . . . Feedback Blocked . | . . . Robot Schematics Acquired . | . . . Robots Built . | . . . Authchips . | . . . Time . | . . . Total Robot Build Rating . | . . . Part Schematics Acquired . | . . . Parts Built . | . . . Authchips . | . . . Time . | . . . Total Part Build Rating . | . . . Parts Repaired . | . . . Time . | . . . Parts Recycled . | . . . Recycled Matter . | . . . Retrieved Matter . | . . . Retrieved Components . | . . . Parts Scanalyzed . | . . . Part Schematics Acquired . | . . . Parts Damaged . | . . . Bothacking | -11 -10 -10 ------------ Run | Yrd Mat Min Used RIF Installer . | . . . Robots Hacked . | . . . Non-combat . | . . . Combat . | . . . Robot Hacks Applied . | . . . Relay Couplers Released . | . . . Fabnet Peak Effective % . | . . . Robots Rewired . | . . . Allies Hacked . | . . . Hacks Repelled . | . . . Allies | -11 -10 -10 -------- Run | Yrd Mat Min Total Allies . | . . . Largest Group . | . . . Highest-Rated Group . | . . . Highest-Rated Ally . | . . . Total Orders . | . . . Ally Attacks . | . . . Total Damage . | . . . Kills . | . . . Allies Corrupted . | . . . Allies Melted 1 | . . 1 Intel | -11 -10 -10 ------- Run | Yrd Mat Min Active Infowar (turns) 1304 | 72 961 271 Seismic 1304 | 72 961 271 Robot Analysis Total 1 | . 1 . Derelict Logs Recovered . | . . . Drone Launches . | . . . Drone Recoveries . | . . . Exploration | -11 -10 -10 ------------- Run | Yrd Mat Min Turns Passed 1768 | 264 1233 271 Spaces Moved 907 | 121 647 139 Core 5 | 5 . . Treads 902 | 116 647 139 Legs . | . . . Wheels . | . . . Hover . | . . . Flight . | . . . Fastest Speed 50 | 50 160 160 Average Speed 159 | 155 160 160 Slowest Speed 160 | 160 160 160 Overloaded Moves . | . . . Propulsion Burnouts . | . . . Robots Hopped . | . . . Potential Cave-ins . | . . . Cave-ins Triggered . | . . . Exploration Rate (%) 37 | 6 77 30 Regions Visited 2 Branch Regions 1 Pre-discovered Areas . | . . . Known Exits Taken . | . . . Unknown Exits Taken 2 | 1 1 . Scrap Searched . | . . . Spaces Dug 1 | . 1 . Terrain Destroyed 17 | . 1 16 Melee . | . . . Projectile 1 | . 1 . AOE 16 | . . 16 Terrain Rammed . | . . . Walls Destroyed . | . . . Machines Disabled . | . . . Actions | -11 -10 -10 --------- Run | Yrd Mat Min Total 1063 | 163 742 158 Wait 10 | . 10 . Move 905 | 120 646 139 Hop . | . . . Pick Up 18 | 3 15 . Fast Attach 7 | 7 . . Attach 3 | 1 1 1 Detach 1 | 1 . . Swap 18 | . 15 3 Drop 7 | . 7 . Fire 94 | 31 48 15 Melee . | . . . Ram . | . . . Kick . | . . . Crush . | . . . Escape Stasis . | . . . Rewire . | . . . Trap . | . . . Miscellaneous . | . . . Route ------- -11/Scrapyard -10/Materials (discovered 4 exits: [*Mat] / [*Min x2] / [*Sub]) -10/Mines History --------- Turn | Location | Event 4 | -11/Scrapyard | Discovered new exit (range 14) 265 | -11/Scrapyard | Entered Materials 319 | -10/Materials | Build established: Mutant 787 | -10/Materials | Discovered new exit (range 10) 914 | -10/Materials | Discovered new exit (range 8) 981 | -10/Materials | Core integrity fell below 50% 1157 | -10/Materials | Discovered new exit (range 16) 1171 | -10/Materials | Discovered new exit (range 10) 1498 | -10/Materials | Entered Mines 1730 | -10/Mines | Assembled infested the area 1735 | -10/Mines | Assisted by a Guerilla fighting off Assembled 1759 | -10/Mines | Core integrity fell below 20% 1769 | -10/Mines | Destroyed by as-25309 with Assembled Blade Last Messages --------------- 01646_ S-10 Pest destroyed. 01649_ Acquired 18 matter. 01651_ Acquired 14 matter. 01652_ Acquired 16 matter. 01730_ ALERT: Infestation in the mines, dispatching Demolisher response squad. 01735_ A derelict emerges from the shadows: "You need to get out of here! I've been tracking a group of Assembled to figure out where they're coming from, and they're closing on this area, come on!" 01740_ 0H-E68(h): "I'll hold them off! Go on ahead or try to find another way!" 01740_ HV Slug penetrates as-56921. 01740_ HV Slug penetrates Wall. 01742_ as-56921 knocked back. 01752_ HV Slug penetrates as-77363. 01752_ as-77363 knocked back. 01753_ 0H-E68(h) critical meltdown. 01764_ as-94451 destroyed. 01768_ Lgt. Ion Engine destroyed. 01768_ Destroyed Asb. Hover Unit. Map ----- +----------------------------------------------------+ | ??????## ##????????# #????????????? | | ??##### #?????????## ##???? #?????? | | ?## ##??????????# #### ##????? | | ?# ##??????????## ##???? | | ?# ##?????????### #? | | ?## ##?????????## #### ?? | | ??# #?????????## ##?????? | | ??## ##?????????# ##?????? | | ???####??????????# #?????? | | ?????????????????# #????? | | ?????????????????## ## #????? | | ?????????????????# ##? ##????? | | ?????????????????# ##?? ##?????? | | ??????????????#### ####???? ####??????? | | ??????????????# #??????? #?????????? | | ??????????????# #####????????#?????????? | | ??????????????# #??????????????????????? | | ??????????????# #??????????????????????? | | ??????????????# #??????????????????????? | | ??????????????# #??????????????????????? | | ??????????????# #??????????????????????? | | ??????????????# #??????????????????????? | | ??????????????# #??????????????????????? | | ?????????????## #??????????????????????? | | ?????????????# ##?????????????????????? | | ?????????????# @ #?????????????????????? | | ?????????????# aa#?????????????????????? | | ?????????????# #?????????????????????? | | ?????????????# ?????????????????????? | | ?????????????# %* ????????????????????? | | ?????????????# =% a???????????????????? | | ?????????????# ;##??????????????????? | | ?????????????## ####???????????????????? | | ??????????????###??????????????????????? | | ???????????????????????????????????????? | | ???????????????????????????????????????? | | ???????????????????????????????????????? | | ???????????????????????????????????????? | | ???????????????????????????????????????? | | ???????????????????????????????????????? | | ???????????????????????????????????????? | | | | | | | | | | | | | | | | | | | +----------------------------------------------------+ Best States ------------- Heat Dissipation 25 Energy Generation 10 Energy Capacity 250 Matter Stores 366 Matter Capacity 500 Sight Range 16 Terrain Scan Density 10 Evasion (%) 40 Recoil Reduction 2 Item Schematics ----------------- None Robot Schematics ------------------ None Fabricated ------------ Nothing Repaired ---------- Nothing Alien Tech Used ----------------- None Achievements -------------- None Challenges ------------ None Game ------ Seed ImprinterShadeWheel Manual? 0 Play Time 00:20:41 Cumulative 160.8 hours Start 2025.10.12 @ 17:43:33 End 2025.10.12 @ 18:02:04 Sessions 1 Manual Loads 0 Difficulty Rogue Special Mode None Game No. 55 Rogue 55 Adventurer 0 Explorer 0 Win Type - Total 1 Types 1/0/0/0/0/0/0/0/0/0 Lore% 42 Gallery% 43 Achievement% 42 Wizard Run 0 Options --------- Layout 0 ASCII 1 Keyboard 1 Movement Arrows Keybinds 0 Fullscreen 1 Font 28/Smallcaps Map View 72x54 Zoom Use 0% Tactical HUD 1 Map Filters NONE Filters NONE Steam 1 RUN: a7d7cda6-9a03-46fe-a8ab-df9911aae403